bitfinex/quotes_ETHUSD_20220215
["timestamp","ask_amount","ask_price","bid_price","bid_amount"]
[1644896148801,0.8261432,3026.9,3026.6,0.00666012]
[1644896149002,0.3,3026.8,3026.6,0.00666012]
[1644896149402,0.3,3027.0,3026.6,0.00666012]
[1644896149703,0.82612,3026.9,3026.6,0.00666012]
[1644896149903,1.9522344,3026.9,3026.6,0.00666012]
[1644896150205,1.1261144,3026.9,3026.7,0.8261354]
[1644896150403,0.1651,3027.0,3026.7,0.83279552]
[1644896150605,1.82612,3027.1,3026.7,0.83279552]
[1644896150803,0.82612,3027.1,3026.8,0.00666012]
[1644896151006,1.40220278,3027.0,3026.8,0.00666012]
[1644896151605,2.22833278,3027.0,3026.8,0.00666012]
[1644896151905,1.82613,3027.0,3026.8,0.00666012]
[1644896152343,0.82613,3027.0,3026.8,0.00666012]
[1644896152543,1.82613,3027.0,3026.8,0.00666012]
[1644896153144,0.82613,3027.0,3026.8,0.00666012]
[1644896153347,1.82613,3027.0,3026.8,0.00666012]
[1644896153546,0.82613,3027.0,3026.8,0.00666012]
[1644896153749,1.82613,3027.0,3026.8,0.00666012]
[1644896154747,0.82613,3027.0,3026.8,0.00666012]
[1644896156005,0.82613,3027.0,3026.8,0.83276802]
[1644896156204,0.82613,3027.0,3026.8,0.8261079]
[1644896156408,0.82613,3027.0,3026.8,0.83276802]
[1644896158810,1.40224628,3026.9,3026.8,0.83276802]
[1644896159014,1.40224912,3026.9,3026.8,0.83276802]
[1644896159412,0.82613,3027.0,3026.8,0.83276802]
[1644896159842,1.40223207,3026.9,3026.8,0.83276802]
[1644896161242,1.82613,3027.0,3026.8,0.83276802]
[1644896161442,1.4022222,3026.9,3026.8,0.83276802]
[1644896161648,1.4022222,3026.9,3026.8,0.00666012]
[1644896161842,2.4022222,3026.9,3026.6,0.8261399]
[1644896162043,1.4022222,3026.8,3026.7,0.00666012]
[1644896162242,0.82500429,3026.9,3026.7,0.00666012]
[1644896162443,1.40226107,3026.8,3026.7,0.00666012]
[1644896162644,1.40226107,3026.8,3026.5,0.00666012]
[1644896162842,1.40226107,3026.8,3026.5,0.83278072]
[1644896163043,1.40226107,3026.8,3026.6,0.00666012]
[1644896163244,1.82612,3027.0,3026.6,0.00666012]
[1644896163504,1.40225809,3026.9,3026.6,0.00666012]
[1644896164313,1.40225809,3026.9,3026.6,0.83277242]
[1644896164505,1.0,3027.1,3026.7,0.00666012]
[1644896164705,1.40222167,3027.0,3026.7,0.00666012]
[1644896164905,1.40222167,3026.9,3026.7,0.00666012]
[1644896165206,1.0,3027.1,3026.7,0.00666012]
[1644896165405,1.40221984,3027.0,3026.7,0.83271402]
[1644896165607,1.40221984,3027.0,3026.8,0.00666012]
[1644896165905,0.66263407,3027.2,3026.8,0.00666012]
[1644896165906,1.40221984,3026.9,3026.8,0.00666012]
[1644896166307,1.40221984,3027.1,3026.8,0.00666012]
[1644896166507,1.40221984,3027.0,3026.6,0.00666012]
[1644896166705,1.40221984,3026.9,3026.6,0.83276532]
[1644896166908,2.48875407,3027.2,3026.6,0.83276532]
[1644896166909,1.40221984,3027.1,3026.7,0.00666012]
[1644896167168,1.66263407,3027.2,3026.7,0.00666012]
[1644896167371,1.40219083,3027.1,3026.7,0.00666012]
[1644896167968,0.82614,3026.9,3026.7,0.00666012]
[1644896168372,1.40220724,3026.8,3026.7,0.00666012]
[1644896168574,1.40220698,3026.8,3026.7,0.00666012]
[1644896169372,2.40220698,3026.8,3026.7,0.00666012]
[1644896170573,1.40220698,3026.8,3026.7,0.00666012]
[1644896171406,0.82615,3026.9,3026.7,0.00666012]
[1644896172808,1.65234,3026.9,3026.7,0.00666012]
[1644896173109,0.82615,3026.9,3026.7,0.00666012]
[1644896173514,1.40225216,3026.8,3026.7,0.00666012]
[1644896173711,2.22845216,3026.8,3026.5,0.00666012]
[1644896173912,0.8262,3026.8,3026.5,0.00666012]
[1644896174113,0.8262,3026.8,3026.5,0.84686405]
[1644896174313,0.8262,3026.8,3026.6,0.00666012]
[1644896174758,0.8262,3026.8,3026.5,1.66636463]
[1644896174759,1.40225374,3026.7,3026.5,0.8261607]
[1644896174955,1.40225374,3026.7,3026.6,0.00666012]
[1644896176559,1.8262,3026.8,3026.6,0.00666012]
[1644896176759,0.8262,3026.8,3026.6,0.00666012]
[1644896178619,1.82614,3026.9,3026.6,0.00666012]
[1644896178817,1.40224762,3026.8,3026.6,0.00666012]
[1644896179217,2.40224762,3026.8,3026.6,0.00666012]
[1644896179420,1.0,3026.8,3026.6,0.00666012]
[1644896179617,1.0,3026.9,3026.6,0.00666012]
[1644896179820,1.40224253,3026.8,3026.6,0.83279712]
[1644896180022,3.47855,3027.0,3026.7,0.00666012]
[1644896180220,3.22838646,3026.9,3026.7,0.00666012]
[1644896180420,2.40223646,3026.8,3026.7,0.00666012]
[1644896181321,1.40223646,3026.8,3026.7,0.00666012]
[1644896181519,2.40223646,3026.8,3026.7,0.00666012]
[1644896181919,1.40223646,3026.8,3026.7,0.00666012]
[1644896182155,2.40223646,3026.8,3026.7,0.00666012]
[1644896182754,1.40223646,3026.8,3026.7,0.00666012]
[1644896182955,2.40223646,3026.8,3026.7,0.00666012]
[1644896183357,1.40084895,3026.8,3026.5,0.00666012]
[1644896183555,3.22705895,3026.8,3026.5,0.00666012]
[1644896183758,1.82621,3026.8,3026.5,0.00666012]
[1644896184259,0.82621,3026.8,3026.5,0.00666012]
[1644896184458,1.82621,3026.8,3026.5,0.00666012]
[1644896184658,0.82621,3026.8,3026.5,0.00666012]
[1644896184860,1.82621,3026.8,3026.5,0.00666012]
[1644896185063,0.82621,3026.8,3026.5,0.00666012]
[1644896185260,1.82621,3026.8,3026.5,0.00666012]
[1644896185658,0.82621,3026.8,3026.5,0.00666012]
[1644896185894,0.82621,3026.8,3026.5,0.83281882]
[1644896186093,0.82621,3026.8,3026.6,0.00666012]
[1644896188795,0.82621,3026.8,3026.4,0.00666012]
[1644896188997,1.82621,3026.8,3026.4,0.00666012]
[1644896189197,1.65241,3026.8,3026.4,0.00666012]
[1644896189397,2.65241,3026.8,3026.4,0.00666012]
[1644896190050,1.82621,3026.8,3026.4,0.83279012]
[1644896190254,1.82621,3026.8,3026.4,1.67299405]
[1644896190448,0.82621,3026.8,3026.4,1.67299405]
[1644896190651,1.82621,3026.8,3026.4,1.67299405]
[1644896190853,1.82621,3026.8,3026.4,1.67304015]
[1644896191252,0.82621,3026.8,3026.4,1.67304015]
[1644896191450,2.65241,3026.8,3026.4,0.84686405]
[1644896191952,1.82621,3026.8,3026.4,0.84686405]
[1644896192151,1.82621,3026.8,3026.4,0.00666012]
[1644896192351,1.65253,3026.7,3026.4,0.00666012]
[1644896192549,1.65255,3026.7,3026.4,0.00666012]
[1644896192950,0.66263407,3026.6,3026.4,0.00666012]
[1644896193593,2.48889407,3026.6,3026.4,0.00666012]
[1644896193798,3.31515407,3026.6,3026.4,0.00666012]
[1644896193994,2.48889407,3026.6,3026.4,0.00666012]
[1644896194393,1.48889407,3026.6,3026.4,0.00666012]
[1644896194594,2.48889407,3026.6,3026.4,0.00666012]
[1644896194795,1.48889407,3026.6,3026.4,0.00666012]
[1644896194994,2.48889407,3026.6,3026.4,0.00666012]
[1644896195399,1.48889407,3026.6,3026.4,0.00666012]
[1644896195595,2.48889407,3026.6,3026.4,0.00666012]
[1644896195798,1.48889407,3026.6,3026.4,0.00666012]
[1644896195996,2.48889407,3026.6,3026.4,0.00666012]
[1644896196897,3.31517407,3026.6,3026.4,0.00666012]
[1644896197947,0.82628,3026.5,3026.4,0.00666012]
[1644896198143,2.48889407,3026.6,3026.4,0.00666012]
[1644896200348,3.31517407,3026.6,3026.4,0.00666012]
[1644896200747,0.82628,3026.5,3026.4,0.00666012]
[1644896201407,1.82628,3026.5,3026.4,0.00666012]
[1644896201606,1.82627,3026.5,3026.4,0.00666012]
[1644896202010,0.82627,3026.5,3026.4,0.00666012]
[1644896202210,1.82627,3026.5,3026.4,0.00666012]
[1644896203010,1.0,3026.5,3026.4,0.00666012]
[1644896203512,1.40239035,3026.5,3026.4,0.00666012]
[1644896203910,1.0,3026.5,3026.4,0.00666012]
[1644896204110,2.48889407,3026.6,3026.4,0.00666012]
[1644896205155,1.48889407,3026.6,3026.4,0.00666012]
[1644896205353,2.48889407,3026.6,3026.4,0.00666012]
[1644896205552,1.48889407,3026.6,3026.4,0.00666012]
[1644896205757,1.48889407,3026.6,3026.3,3.43284282]
[1644896205953,0.66263407,3026.6,3026.3,3.43284282]
[1644896206954,1.48881407,3026.6,3026.3,3.43284282]
[1644896207253,1.48881407,3026.6,3026.3,2.8]
[1644896208503,1.48881407,3026.6,3026.3,4.46640093]
[1644896209003,1.48353225,3026.6,3026.3,4.46640093]
[1644896209405,0.66263407,3026.6,3026.3,4.46640093]
[1644896209606,1.0,3026.8,3026.3,4.46640093]
[1644896209802,1.402326,3026.7,3026.3,4.46640093]
[1644896210003,1.0,3027.1,3026.3,4.46640093]
[1644896210204,1.65246,3026.7,3026.3,4.46640093]
[1644896210403,1.0,3026.9,3026.3,4.46640093]
[1644896210604,0.82617,3026.6,3026.3,4.46640093]
[1644896211204,0.82617,3026.6,3026.3,3.64020393]
[1644896212549,1.48880407,3026.6,3026.3,3.64020393]
[1644896212750,2.31506407,3026.6,3026.3,3.64020393]
[1644896212949,3.31506407,3026.6,3026.3,3.64020393]
[1644896213152,2.48880407,3026.6,3026.3,3.64020393]
[1644896213352,1.48880407,3026.6,3026.3,3.64020393]
[1644896213550,1.48880407,3026.6,3026.3,4.46642003]
[1644896214553,1.48880407,3026.6,3026.3,3.64020393]
[1644896215757,1.48880407,3026.6,3026.3,4.46642083]
[1644896220953,0.82617,3026.6,3026.3,4.46642083]
[1644896224210,0.82617,3026.6,3026.3,3.64020393]
[1644896224912,2.22857499,3026.5,3026.3,2.8]
[1644896225110,0.82622,3026.5,3026.3,2.8]
[1644896225811,0.82622,3026.5,3026.3,4.46641923]
[1644896226011,0.64133407,3026.7,3026.3,4.46641923]
[1644896226212,1.40230966,3026.6,3026.3,4.46641923]
[1644896226611,1.40230966,3026.6,3026.3,3.64020393]
[1644896227662,0.82622,3026.5,3026.3,3.64020393]
[1644896228060,0.82622,3026.5,3026.4,0.84020393]
[1644896228661,0.82619,3026.6,3026.4,0.84020393]
[1644896250756,0.82468157,3026.6,3026.4,0.84020393]
[1644896251655,0.82468157,3026.6,3026.3,3.64020393]
[1644896251856,1.40235096,3026.5,3026.3,2.8]
[1644896252460,1.40235096,3026.5,3026.3,4.4523621]
[1644896252664,1.40235096,3026.4,3026.3,3.6262021]
[1644896252859,1.40235096,3026.6,3026.3,3.6262021]
[1644896253059,1.40235096,3026.6,3026.3,2.8]
[1644896253701,2.22855096,3026.6,3026.3,3.6262287]
[1644896253901,1.40235096,3026.5,3026.3,3.6262287]
[1644896254500,1.40235096,3026.4,3026.3,3.6262287]
[1644896254900,1.40235096,3026.6,3026.3,3.6262287]
[1644896255101,1.40235096,3026.5,3026.3,3.6262287]
[1644896255305,1.40235096,3026.4,3026.3,3.6262287]
[1644896256103,1.40235096,3026.6,3026.3,3.6262287]
[1644896256302,1.40235096,3026.5,3026.3,3.6262287]
[1644896256502,1.40235096,3026.4,3026.3,3.6262287]
[1644896257551,1.40235096,3026.4,3026.3,2.8]
[1644896258854,1.40235096,3026.4,3026.3,3.626236]
[1644896260252,1.40235096,3026.6,3026.3,3.626236]
[1644896260456,1.40235096,3026.5,3026.3,3.626236]
[1644896260654,1.40235096,3026.4,3026.3,2.8]
[1644896260907,1.40235096,3026.6,3026.3,2.8]
[1644896261115,1.40235096,3026.5,3026.3,2.8]
[1644896261310,1.46757407,3026.7,3026.3,2.8]
[1644896261311,1.40235096,3026.4,3026.3,2.8]
[1644896261710,0.82621,3026.5,3026.3,2.8]
[1644896261910,0.82621,3026.5,3026.3,3.6262205]
[1644896261911,1.40235096,3026.4,3026.3,3.6262205]
[1644896262312,0.64133407,3026.7,3026.3,3.6262205]
[1644896262510,1.40245814,3026.6,3026.3,2.8]
[1644896262710,2.22867814,3026.6,3026.3,2.8]
[1644896263114,2.22867814,3026.6,3026.3,3.6262096]
[1644896263115,1.40245814,3026.5,3026.3,3.6262096]
[1644896263512,0.64133407,3026.7,3026.3,2.8]
[1644896263712,7.077e-05,3026.6,3026.4,3.5]
[1644896263920,0.16833183,3027.6,3026.5,5.476]
[1644896264111,0.16833183,3027.6,3026.7,0.83966781]
[1644896264312,0.16833183,3027.6,3026.7,1.61566781]
[1644896264513,0.16833183,3027.6,3026.9,0.82583]
[1644896264754,0.16833183,3027.6,3027.0,0.8258484]
[1644896265055,0.16833183,3027.6,3027.0,1.6516984]
[1644896265255,0.16833183,3027.6,3027.1,0.3]
[1644896265454,0.16833183,3027.6,3027.2,0.82568]
[1644896265858,0.16833183,3027.6,3027.2,1.6512726]
[1644896266056,0.16833183,3027.6,3027.2,0.8255926]
[1644896266256,0.16833183,3027.6,3027.3,0.82575]
[1644896266458,0.16833183,3027.6,3027.3,2.4771174]
[1644896267060,0.16833183,3027.6,3027.4,0.8257]
[1644896267258,0.16833183,3027.6,3027.4,1.65135]
[1644896267458,0.16833183,3027.6,3027.4,2.4770337]
[1644896268504,0.16833183,3027.6,3027.4,1.6513837]
[1644896269405,0.00323183,3027.6,3027.4,1.6513837]
[1644896269607,0.50632879,3027.7,3027.4,1.6513837]
[1644896274869,0.50632879,3027.7,3027.4,1.9513837]
[1644896280657,0.50632879,3027.7,3027.5,1.6515122]
[1644896282158,0.50632879,3027.7,3027.5,4.4515122]
[1644896284303,0.5053533,3027.7,3027.5,4.4515122]
[1644896293115,0.5053533,3027.7,3027.6,0.82576]
[1644896293516,0.5053533,3027.7,3027.6,0.77576]
[1644896295161,0.5053533,3027.7,3027.6,1.6014895]
[1644896299311,0.5053533,3027.7,3027.6,1.5514895]
[1644896303563,0.5053533,3027.7,3027.6,1.8514895]
[1644896304961,1.90726721,3027.7,3027.6,1.8514895]
[1644896305362,0.5053533,3027.7,3027.6,1.8514895]
[1644896305563,1.90726155,3027.7,3027.6,1.8514895]
[1644896312968,1.90726155,3027.7,3027.6,2.8514895]
[1644896313168,0.5053533,3027.7,3027.6,2.8514895]
[1644896313408,3.75869761,3028.5,3027.6,2.8514895]
[1644896313610,0.02052642,3028.3,3028.0,1.6508967]
[1644896313812,1.40177917,3028.2,3028.0,1.6508967]
[1644896314808,0.00513204,3028.5,3028.2,0.82548]
[1644896315013,0.00513204,3028.5,3028.2,3.6018995]
[1644896315014,1.4017547,3028.4,3028.2,3.6018995]
[1644896315812,1.4017547,3028.5,3028.2,2.7764195]
[1644896316013,1.40688708,3028.5,3028.4,0.82551]
[1644896316216,1.40688708,3028.5,3028.3,2.10680125]
[1644896316413,1.4017547,3028.4,3028.3,1.12549]
[1644896317015,1.12477863,3028.6,3028.4,0.82551]
[1644896317257,1.4068849,3028.5,3028.4,1.6510145]
[1644896318057,1.4017526,3028.5,3028.4,1.6510145]
[1644896326060,1.4017526,3028.5,3028.4,4.4510145]
[1644896328907,1.40496827,3028.5,3028.4,4.4510145]
[1644896333761,1.40496827,3028.5,3028.4,4.7510145]
[1644896334761,1.40496827,3028.5,3028.4,4.4510145]
[1644896344810,1.40486125,3028.5,3028.4,4.4510145]
[1644896346611,1.40486125,3028.5,3028.4,4.4010145]
[1644896348865,1.40486125,3028.5,3028.4,4.7010145]
[1644896349867,1.40486125,3028.5,3028.4,4.4010145]
[1644896350666,1.40486125,3028.5,3028.4,4.7010145]
[1644896359010,0.00321567,3028.5,3028.4,4.7010145]
[1644896359212,1.40486125,3028.7,3028.5,0.82539]
[1644896359413,1.40486125,3028.7,3028.6,0.82539]
[1644896363262,1.40486125,3028.7,3028.6,1.82539]
[1644896363461,1.40486125,3028.7,3028.6,5.24220034]
[1644896363661,1.40486125,3028.7,3028.6,4.24220034]
[1644896363860,1.40486125,3028.7,3028.6,5.24220034]
[1644896364061,0.00321567,3028.7,3028.6,5.24220034]
[1644896364262,1.40486125,3029.1,3028.6,5.24220034]
[1644896364462,1.40486125,3029.1,3028.7,2.4758075]
[1644896365662,1.40486125,3029.1,3028.8,0.82531]
[1644896365911,1.40486125,3029.1,3029.0,0.82531]
[1644896366213,1.40164558,3029.1,3029.0,1.12531]
[1644896366613,1.40486125,3029.4,3029.0,0.3]
[1644896366814,1.40164558,3029.3,3029.1,1.65064]
[1644896367015,1.40164558,3029.2,3029.1,0.98123854]
[1644896367212,1.40486125,3029.2,3029.1,0.98123854]
[1644896367713,0.00321567,3029.2,3029.1,0.98123854]
[1644896367915,0.00321567,3029.4,3029.1,0.98123854]
[1644896368114,0.00321567,3029.4,3029.2,1.65064]
[1644896368315,0.00321567,3029.4,3029.2,1.12532]
[1644896369760,0.00321567,3029.4,3029.2,1.9506328]
[1644896369963,0.00321567,3029.4,3029.3,0.82532]
[1644896372568,0.00321567,3029.4,3029.3,3.62532]
[1644896373421,1.40486125,3029.6,3029.3,4.4506204]
[1644896373619,1.40486125,3029.6,3029.4,0.82532]
[1644896375525,1.40486125,3029.6,3029.4,1.6506324]
[1644896375926,1.40486125,3029.6,3029.5,0.82528]
[1644896376125,1.40164558,3029.6,3029.5,0.82528]
[1644896379664,1.42710086,3029.6,3029.5,0.82528]
[1644896381918,1.42710086,3029.6,3029.4,0.8253124]
[1644896381919,21.39843493,3029.6,3029.4,0.8253124]
[1644896382120,3.02124801,3029.5,3029.4,0.8253124]
[1644896382417,1.40486125,3029.5,3029.4,0.8253124]
[1644896387165,1.40486125,3029.5,3029.3,2.95598899]
[1644896387565,1.40486125,3029.5,3029.4,0.8253124]
[1644896389616,1.43027596,3029.5,3029.4,0.8253124]
[1644896390820,1.43027596,3029.5,3029.4,1.9506324]
[1644896392174,1.43027596,3029.5,3029.4,0.8253124]
[1644896392377,1.43027596,3029.5,3029.3,3.78131899]
[1644896392378,21.40161003,3029.5,3029.3,2.8]
[1644896392676,21.40161003,3029.5,3029.3,2.32234121]
[1644896392677,1.40164558,3029.4,3029.3,2.32234121]
[1644896392880,2.99899089,3029.4,3029.3,2.32234121]
[1644896393077,1.40164558,3029.4,3029.3,2.32234121]
[1644896393676,4.49452534,3029.5,3029.3,2.32234121]
[1644896393877,1.40164558,3029.4,3029.3,2.32234121]
[1644896394376,1.40164558,3029.4,3029.3,3.14782141]
[1644896394576,20.73164558,3029.4,3029.3,2.32234121]
[1644896394979,2.22712558,3029.4,3029.3,2.32234121]
[1644896395179,1.40164558,3029.4,3029.3,2.32234121]
[1644896396218,2.22709558,3029.4,3029.2,0.8255057]
[1644896396422,1.40164558,3029.3,3029.2,0.8255057]
[1644896397220,1.40724458,3029.3,3029.2,0.8255057]
[1644896397420,20.73724458,3029.3,3029.2,0.8255057]
[1644896397622,20.73724458,3029.3,3028.3,2.81006]
[1644896397821,2.22718558,3029.2,3028.4,3.6019162]
[1644896398020,1.40486125,3029.1,3028.4,3.6019162]
[1644896398222,1.40486125,3029.1,3028.4,5.94212802]
[1644896398421,1.40164558,3029.0,3028.7,0.8255]
[1644896398625,1.40164558,3028.9,3028.7,0.8255]
[1644896398822,0.005599,3029.3,3028.7,1.1255]
[1644896399021,1.40128322,3029.2,3028.7,0.3]
[1644896399221,0.00321567,3029.1,3028.4,5.90687255]
[1644896399421,0.00321567,3029.1,3028.4,2.7763862]
[1644896399675,0.00321567,3029.1,3028.8,1.6511129]
[1644896399876,0.00321567,3029.1,3028.8,2.4765929]
[1644896400374,0.00321567,3029.1,3028.8,1.6511129]
[1644896400774,0.00321567,3029.1,3028.8,2.4765429]
[1644896400975,0.00321567,3029.1,3028.9,1.12546]
[1644896401181,1.40128322,3029.2,3028.9,0.3]
[1644896401182,1.40449889,3029.2,3028.9,0.3]
[1644896401475,1.40449889,3029.2,3028.8,2.4765129]
[1644896401675,1.40449889,3029.2,3028.8,1.6511129]
[1644896401875,1.40449889,3029.2,3029.0,0.82541]
[1644896402974,1.40449889,3029.2,3029.0,1.6507281]
[1644896403412,1.40128322,3029.1,3029.0,0.8253181]
[1644896403615,1.40128322,3029.5,3029.0,0.8253181]
[1644896403818,0.00321567,3029.4,3029.0,0.8253181]
[1644896404415,0.00321567,3029.4,3029.1,1.6507995]
[1644896404615,0.00321567,3029.4,3029.1,0.8254095]
[1644896404816,0.00321567,3029.4,3029.2,0.3]
[1644896405218,0.00321567,3029.4,3029.1,0.8254095]
[1644896405616,1.40449889,3029.4,3029.2,0.8254349]
[1644896406016,1.40128322,3029.3,3029.2,0.8254349]
[1644896406214,0.005599,3029.3,3029.2,3.2254349]
[1644896406615,1.40688222,3029.3,3029.2,3.2254349]
[1644896409774,1.43536341,3029.3,3029.2,3.2254349]
[1644896410075,1.43536341,3029.3,3029.2,2.4]
[1644896410917,1.43536341,3029.3,3029.2,2.7]
[1644896411719,1.43536341,3029.3,3029.2,6.2]
[1644896411920,1.43536341,3029.3,3029.2,2.7]
[1644896414679,1.43536341,3029.3,3029.2,5.86338143]
[1644896414875,1.43536341,3029.3,3029.2,6.86338143]
[1644896415479,1.43536341,3029.3,3029.2,3.7]
[1644896416078,1.43407697,3029.3,3029.2,3.7]
[1644896416978,1.43407697,3029.3,3029.2,2.7]
[1644896418177,1.43407697,3029.3,3029.2,3.7]
[1644896418721,0.03279375,3029.3,3029.2,6.86263769]
[1644896418922,0.03279375,3029.3,3029.2,3.7]
[1644896423068,0.03279375,3029.3,3029.2,6.84700488]
[1644896423269,0.03279375,3029.3,3029.2,6.87248033]
[1644896424071,0.03279375,3029.3,3029.2,3.7]
[1644896427725,0.03279375,3029.3,3029.2,6.81697622]
[1644896429877,9.375e-05,3029.3,3029.2,7.64209622]
[1644896430074,0.00615252,3029.4,3029.3,4.85]
[1644896430075,5.252e-05,3029.4,3029.3,4.85]
[1644896430279,5.252e-05,3029.4,3029.3,15.47612]
[1644896430474,5.252e-05,3029.4,3029.3,16.94968696]
[1644896430675,0.00321567,3029.6,3029.3,13.44968696]
[1644896430874,0.00321567,3029.6,3029.4,1.0]
[1644896431074,2.00321567,3029.7,3029.5,1.30105]
[1644896432077,2.00321567,3029.7,3029.5,2.1260911]
[1644896432380,2.00321567,3029.7,3029.6,3.56741196]
[1644896432574,2.00321567,3029.7,3029.6,5.21746196]
[1644896432776,2.00321567,3029.7,3029.6,6.69346196]
[1644896440380,2.00321567,3029.7,3029.6,6.68875391]
[1644896440577,2.02882243,3029.7,3029.6,6.68875391]
[1644896442024,2.02882243,3029.7,3029.6,6.68782626]
[1644896454375,2.02882243,3029.7,3029.6,6.21182626]
[1644896454777,2.02882243,3029.7,3029.6,2.9444143]
[1644896455177,2.02882243,3029.7,3029.6,6.0623137]
[1644896455376,2.03735801,3029.7,3029.6,6.0623137]
[1644896456220,2.03735801,3029.7,3029.6,2.9444143]
[1644896456421,2.03735801,3029.7,3029.6,6.07289703]
[1644896456920,2.03735801,3029.7,3029.6,2.9444143]
[1644896459774,2.03735801,3029.7,3029.6,6.27535209]
[1644896459973,2.03735801,3029.7,3029.6,2.9444143]
[1644896461981,2.03735801,3029.7,3029.6,4.0199207]
[1644896462177,2.03735801,3029.7,3029.6,7.23090314]
[1644896462579,2.03735801,3029.7,3029.6,4.0199207]
[1644896463184,2.03735801,3029.7,3029.6,7.17919857]
[1644896463419,2.03735801,3029.7,3029.6,4.0199207]
[1644896463620,2.03735801,3029.7,3029.6,7.16269713]
[1644896464420,2.03609559,3029.7,3029.6,4.0199207]
[1644896464621,2.03609559,3029.7,3029.6,7.1449207]
[1644896466023,2.03287992,3029.7,3029.6,7.1449207]
[1644896466623,2.03287992,3029.7,3029.6,6.0694143]
[1644896470272,2.04995109,3029.7,3029.6,6.0694143]
[1644896471425,2.04995109,3029.7,3029.6,6.90908211]
[1644896472622,2.04995109,3029.7,3029.6,6.0694143]
[1644896473024,2.04995109,3029.7,3029.6,6.90908211]
[1644896476198,2.04995109,3029.7,3029.6,6.5454143]
[1644896476398,2.04995109,3029.7,3029.6,3.4204143]
[1644896478424,2.04995109,3029.7,3029.6,6.83319565]
[1644896480327,2.03287992,3029.7,3029.6,6.83319565]
[1644896480529,2.03287992,3029.7,3029.6,8.09350154]
[1644896483271,2.03287992,3029.7,3029.6,6.83319565]
[1644896485276,2.03170824,3029.7,3029.6,6.83319565]
[1644896488224,2.03170824,3029.7,3029.6,3.4204143]
[1644896489773,2.02317266,3029.7,3029.6,3.4204143]
[1644896490480,2.02317266,3029.7,3029.6,6.63198238]
[1644896490974,2.02317266,3029.7,3029.6,4.25954515]
[1644896491373,2.02317266,3029.7,3029.6,6.58596289]
[1644896492775,2.02317266,3029.7,3029.6,3.4204143]
[1644896494123,2.02317266,3029.7,3029.6,6.59488798]
[1644896495127,2.02317266,3029.7,3029.6,7.85519387]
[1644896495725,2.03170824,3029.7,3029.6,7.85519387]
[1644896496527,0.00321567,3030.6,3029.7,4.55]
[1644896496725,0.00321567,3030.6,3030.1,0.8250088]
[1644896496726,1.40382865,3030.6,3030.1,0.8250088]
[1644896496928,0.02043665,3030.3,3030.1,0.8250088]
[1644896497174,0.02043665,3030.3,3030.1,1.1250088]
[1644896497678,0.02043665,3030.3,3030.2,1.65002]
[1644896497880,0.00321567,3030.6,3030.2,2.4750548]
[1644896498074,1.40382131,3030.6,3030.2,0.8250348]
[1644896498273,1.40382131,3030.6,3030.2,1.1250348]
[1644896498673,1.40382131,3030.6,3030.3,1.65008]
[1644896498873,1.40382131,3030.6,3030.3,1.6500772]
[1644896499274,1.40535796,3030.6,3030.3,1.6500772]
[1644896499475,1.40060564,3030.5,3030.3,1.6500772]
[1644896500286,1.40060564,3030.5,3030.3,0.8250372]
[1644896500478,1.40060564,3030.4,3030.3,0.8250372]
[1644896500675,1.40060564,3030.4,3030.2,1.9500743]
[1644896500926,1.40060564,3030.3,3030.2,3.6000843]
[1644896501227,1.40060564,3030.3,3030.2,6.0750685]
[1644896501422,1.40060564,3030.5,3030.2,6.0750685]
[1644896501622,1.40893072,3030.4,3030.2,6.0750685]
[1644896501821,1.40060564,3030.3,3030.2,6.0750685]
[1644896504021,0.00509658,3030.4,3030.3,1.65003]
[1644896504223,1.4057022,3030.4,3030.3,0.82502]
[1644896505074,1.40060562,3030.4,3030.3,0.82502]
[1644896505278,0.00509658,3030.5,3030.3,0.82502]
[1644896505478,1.40060562,3030.4,3030.3,0.82502]
[1644896506476,0.00321567,3030.6,3030.3,0.82502]
[1644896506477,0.00509847,3030.5,3030.3,0.82502]
[1644896506675,1.40060562,3030.4,3030.3,0.82502]
[1644896508727,1.40060562,3030.4,3030.3,2.47497]
[1644896508927,0.00509847,3030.5,3030.3,1.5674989]
[1644896509127,1.40060562,3030.4,3030.3,0.82502]
[1644896509328,1.40060562,3030.4,3030.3,3.22502]
[1644896511328,0.00509818,3030.5,3030.3,3.22502]
[1644896511531,2.12975191,3030.8,3030.4,0.69937759]
[1644896511728,1.39655721,3030.7,3030.4,1.60083]
[1644896511927,1.39655721,3030.6,3030.4,1.60083]
[1644896512171,7.2151,3031.1,3030.4,1.60083]
[1644896512370,1.40044365,3031.0,3030.4,1.60083]
[1644896512575,1.40044365,3031.0,3030.4,5.4775058]
[1644896513571,0.00153329,3030.9,3030.6,2.3919329]
[1644896513772,0.00153329,3030.9,3030.6,3.5167729]
[1644896514580,1.40044365,3031.0,3030.6,3.5167729]
[1644896514773,0.00153329,3030.9,3030.8,0.7423913]
[1644896514971,0.00153329,3030.9,3030.8,2.3920913]
[1644896515170,0.00153329,3030.9,3030.8,2.6920913]
[1644896515770,2.02764126,3031.3,3030.8,2.6920913]
[1644896516036,2.02764126,3031.3,3030.8,3.5169313]
[1644896516037,0.00509822,3031.0,3030.8,3.5169313]
[1644896516232,1.40044365,3030.9,3030.8,4.2592832]
[1644896516432,1.40044365,3030.9,3030.8,2.6920913]
[1644896517233,0.0054838,3031.0,3030.8,2.6920913]
[1644896517434,1.40044365,3030.9,3030.8,2.6920913]
[1644896518434,0.0054838,3031.0,3030.9,0.82486]
[1644896518737,0.0054838,3031.0,3030.9,1.12486]
[1644896518939,1.40594469,3031.0,3030.9,1.12486]
[1644896519336,1.40046089,3031.0,3030.9,1.12486]
[1644896520002,1.40046089,3031.0,3030.8,2.6096838]
[1644896520190,1.40046089,3031.0,3030.8,3.3520637]
[1644896520792,1.40046089,3030.9,3030.8,2.5271437]
[1644896520992,1.40046089,3030.9,3030.8,4.1768837]
[1644896521194,1.40046089,3031.0,3030.8,4.1768837]
[1644896521396,1.40046089,3030.9,3030.8,4.1768837]
[1644896521592,1.40046089,3031.0,3030.8,4.1768837]
[1644896521996,0.62719761,3031.3,3031.0,0.82485]
[1644896522196,0.62719761,3031.3,3031.1,1.5672259]
[1644896523429,2.02765818,3031.3,3031.1,1.5672259]
[1644896523629,2.02765818,3031.3,3031.1,0.7423759]
[1644896524432,1.40046057,3031.2,3031.1,0.7423759]
[1644896524825,2.02765818,3031.3,3031.1,1.5672359]
[1644896525027,1.40046057,3031.2,3031.1,1.5672359]
[1644896525426,2.02765818,3031.3,3031.1,1.5672359]
[1644896525626,1.40046057,3031.2,3031.1,1.5672359]
[1644896527029,1.40366016,3031.2,3031.0,1.7847517]
[1644896528174,1.40046057,3031.1,3031.0,1.7847517]
[1644896528373,1.40366016,3031.2,3031.0,1.7847517]
[1644896528575,1.40046057,3031.2,3031.0,1.7847517]
[1644896529179,1.40046057,3031.1,3031.0,1.7847517]